fUSD/lending_fUSD_20250504
["ID","MTS","AMOUNT","RATE_DAILY","PERIOD"]
[359832430,1746361844286,-450.0,0.0001978,2]
[359832431,1746361844296,-450.0,0.0001978,2]
[359832432,1746361844306,-503.91,0.0001978,2]
[359832433,1746361844315,-450.0,0.0001978,2]
[359832434,1746361844325,-450.0,0.0001978,2]
[359832435,1746361844334,-327.83455112,0.0001978,2]
[359832436,1746361844343,-165.0,0.0001978,2]
[359832437,1746361844353,-450.0,0.0001978,2]
[359832438,1746361844362,-450.0,0.0001978,2]
[359832439,1746361844372,-450.0,0.0001978,2]
[359832440,1746361844381,-450.0,0.0001978,2]
[359832441,1746361844391,-450.0,0.0001978,2]
[359832442,1746361844401,-450.0,0.0001978,2]
[359832443,1746361844411,-450.0,0.0001978,2]
[359832444,1746361844420,-450.0,0.0001978,2]
[359832445,1746361844430,-450.0,0.0001978,2]
[359832446,1746361844440,-573.44291963,0.0001978,2]
[359832447,1746361844449,-450.0,0.0001978,2]
[359832448,1746361844459,-450.0,0.0001978,2]
[359832449,1746361844468,-450.0,0.0001978,2]
[359832450,1746361844478,-450.0,0.0001978,2]
[359832451,1746361844487,-450.0,0.0001978,2]
[359832453,1746361844497,-543.69,0.0001978,2]
[359832456,1746361844506,-316.74,0.0001978,2]
[359832457,1746361844516,-450.0,0.0001978,2]
[359832458,1746361844525,-450.0,0.0001978,2]
[359832459,1746361844535,-450.0,0.0001978,2]
[359832460,1746361844545,-565.95,0.0001978,2]
[359832461,1746361844555,-450.0,0.0001978,2]
[359832462,1746361844564,-594.97,0.0001978,2]
[359832463,1746361844574,-450.0,0.0001978,2]
[359832464,1746361844583,-450.0,0.0001978,2]
[359832465,1746361844592,-450.0,0.0001978,2]
[359832466,1746361844602,-450.0,0.0001978,2]
[359832467,1746361844610,-178.3,0.0001978,2]
[359832468,1746361844619,-213.91,0.0001978,2]
[359832469,1746361844630,-255.58,0.0001978,2]
[359832470,1746361844640,-450.0,0.0001978,2]
[359832471,1746361844651,-450.0,0.0001978,2]
[359832472,1746361844661,-450.0,0.0001978,2]
[359832473,1746361844671,-450.0,0.0001978,2]
[359832474,1746361844683,-450.0,0.0001978,2]
[359832475,1746361844692,-450.0,0.0001978,2]
[359832476,1746361844701,-450.0,0.0001978,2]
[359832477,1746361844712,-450.0,0.0001978,2]
[359832478,1746361844722,-450.0,0.0001978,2]
[359832479,1746361844732,-450.0,0.0001978,2]
[359832480,1746361844741,-450.0,0.0001978,2]
[359832481,1746361844753,-450.0,0.0001978,2]
[359832482,1746361844764,-450.0,0.0001978,2]
[359832483,1746361844775,-450.0,0.0001978,2]
[359832484,1746361844784,-450.0,0.0001978,2]
[359832485,1746361844794,-450.0,0.0001978,2]
[359832486,1746361844803,-450.0,0.0001978,2]
[359832487,1746361844813,-450.0,0.0001978,2]
[359832488,1746361844822,-20299.45,0.0001978,2]
[359832489,1746361844831,-450.0,0.0001978,2]
[359832490,1746361844841,-1103.2,0.0001978,2]
[359832491,1746361844850,-543.52,0.0001978,2]
[359832492,1746361844862,-450.0,0.0001978,2]
[359832493,1746361844874,-4154.09,0.0001978,2]
[359832494,1746361844885,-450.0,0.0001978,2]
[359832495,1746361844895,-450.0,0.0001978,2]
[359832496,1746361844904,-450.0,0.0001978,2]
[359832497,1746361844914,-450.0,0.0001978,2]
[359832498,1746361844924,-2372.19,0.0001978,2]
[359832499,1746361844933,-450.0,0.0001978,2]
[359832500,1746361844944,-450.0,0.0001978,2]
[359832501,1746361844954,-450.0,0.0001978,2]
[359832502,1746361844963,-583.32,0.0001978,2]
[359832503,1746361844972,-450.0,0.0001978,2]
[359832504,1746361844981,-599.41,0.0001978,2]
[359832505,1746361844991,-580.02,0.0001978,2]
[359832506,1746361845000,-450.0,0.0001978,2]
[359832507,1746361845009,-484.46764661,0.0001978,2]
[359832508,1746361845019,-450.0,0.0001978,2]
[359832509,1746361845028,-450.0,0.0001978,2]
[359832510,1746361845038,-450.0,0.0001978,2]
[359832511,1746361845047,-450.0,0.0001978,2]
[359832512,1746361845057,-334.36,0.0001978,2]
[359832513,1746361845066,-566.7,0.0001978,2]
[359832514,1746361845076,-29017.37,0.0001978,2]
[359832515,1746361845085,-450.0,0.0001978,2]
[359832516,1746361845096,-1658.11,0.0001978,2]
[359832517,1746361845105,-450.0,0.0001978,2]
[359832518,1746361845114,-450.0,0.0001978,2]
[359832519,1746361845124,-1604.59,0.0001978,2]
[359832520,1746361845133,-450.0,0.0001978,2]
[359832521,1746361845143,-450.0,0.0001978,2]
[359832522,1746361845153,-617.38,0.0001978,2]
[359832523,1746361845162,-450.0,0.0001978,2]
[359832524,1746361845171,-450.0,0.0001978,2]
[359832525,1746361845181,-450.0,0.0001978,2]
[359832526,1746361845190,-450.0,0.0001978,2]
[359832527,1746361845200,-1492.29,0.0001978,2]
[359832528,1746361845209,-731.7,0.0001978,2]
[359832529,1746361845219,-450.0,0.0001978,2]
[359832530,1746361845228,-450.0,0.0001978,2]
[359832531,1746361845238,-450.0,0.0001978,2]
[359832532,1746361845247,-450.0,0.0001978,2]
[359832533,1746361845257,-467.9,0.0001978,2]
[359832534,1746361845267,-450.0,0.0001978,2]
[359832535,1746361845276,-450.0,0.0001978,2]
[359832536,1746361845285,-450.0,0.0001978,2]
[359832537,1746361845296,-567.18,0.0001978,2]
[359832538,1746361845306,-648.38,0.0001978,2]
[359832539,1746361845316,-492.61,0.0001978,2]
[359832540,1746361845326,-450.0,0.0001978,2]
[359832541,1746361845335,-450.0,0.0001978,2]
[359832542,1746361845345,-450.0,0.0001978,2]
[359832543,1746361845355,-450.0,0.0001978,2]
[359832544,1746361845364,-1492.46,0.0001978,2]
[359832545,1746361845374,-1485.51,0.0001978,2]
[359832546,1746361845383,-1097.17,0.0001978,2]
[359832547,1746361845393,-570.74,0.0001978,2]
[359832548,1746361845403,-974.38,0.0001978,2]
[359832549,1746361845412,-409.68,0.0001978,2]
[359832550,1746361845422,-450.0,0.0001978,2]
[359832551,1746361845432,-259.82,0.0001978,2]
[359832552,1746361845441,-450.0,0.0001978,2]
[359832553,1746361845451,-450.0,0.0001978,2]
[359832554,1746361845461,-450.0,0.0001978,2]
[359832555,1746361845471,-1097.96,0.0001978,2]
[359832556,1746361845480,-12500.0,0.00019794,2]
[359832557,1746361845490,-889.1740825,0.00019799,2]
[359832558,1746361845501,-12500.0,0.00019803,2]
[359832559,1746361845511,-500.0,0.00019807,2]
[359832560,1746361845521,-500.0,0.00019807,2]
[359832561,1746361845531,-500.0,0.00019807,2]
[359832562,1746361845541,-450.0,0.00019808,2]
[359832563,1746361845550,-156.74,0.00019808,2]
[359832564,1746361845559,-450.0,0.00019808,2]
[359832565,1746361845569,-450.0,0.00019808,2]
[359832566,1746361845578,-450.0,0.00019808,2]
[359832567,1746361845588,-450.0,0.00019808,2]
[359832568,1746361845597,-450.0,0.00019808,2]
[359832569,1746361845606,-545.28,0.00019808,2]
[359832570,1746361845616,-450.0,0.00019808,2]
[359832571,1746361845627,-450.0,0.00019808,2]
[359832572,1746361845637,-219.41400175,0.00019808,2]
[359832573,1746361845647,-450.0,0.00019808,2]
[359832574,1746361845656,-354.18,0.00019808,2]
[359832575,1746361845665,-571.67,0.00019808,2]
[359832576,1746361845675,-450.0,0.00019808,2]
[359832577,1746361845684,-543.69,0.00019808,2]
[359832578,1746361845693,-366.16,0.00019808,2]
[359832579,1746361845703,-450.0,0.00019808,2]
[359832580,1746361845713,-565.95,0.00019808,2]
[359832581,1746361845722,-450.0,0.00019808,2]
[359832582,1746361845732,-594.97,0.00019808,2]
[359832583,1746361845741,-450.0,0.00019808,2]
[359832584,1746361845750,-487.26,0.00019808,2]
[359832585,1746361845760,-450.0,0.00019808,2]
[359832586,1746361845769,-450.0,0.00019808,2]
[359832587,1746361845779,-456.37,0.00019808,2]
[359832588,1746361845789,-450.0,0.00019808,2]
[359832589,1746361845799,-169.85,0.00019808,2]
[359832590,1746361845808,-450.0,0.00019808,2]
[359832591,1746361845818,-407.71,0.00019808,2]
[359832592,1746361845827,-450.0,0.00019808,2]
[359832593,1746361845836,-348.69917208,0.00019808,2]
[359832594,1746361845846,-450.0,0.00019808,2]
[359832595,1746361845856,-450.0,0.00019808,2]
[359832596,1746361845868,-450.0,0.00019808,2]
[359832597,1746361845877,-450.0,0.00019808,2]
[359832598,1746361845887,-450.0,0.00019808,2]
[359832599,1746361845899,-450.0,0.00019808,2]
[359832600,1746361845908,-450.0,0.00019808,2]
[359832601,1746361845918,-20299.45,0.00019808,2]
[359832602,1746361845929,-450.0,0.00019808,2]
[359832603,1746361845940,-1103.2,0.00019808,2]
[359832604,1746361845952,-450.0,0.00019808,2]
[359832605,1746361845963,-4154.09,0.00019808,2]
[359832606,1746361845972,-450.0,0.00019808,2]
[359832607,1746361845982,-450.0,0.00019808,2]
[359832608,1746361845991,-159.3207823,0.00019808,2]
[359832609,1746361846001,-2372.19,0.00019808,2]
[359832610,1746361846011,-450.0,0.00019808,2]
[359832611,1746361846022,-450.0,0.00019808,2]
[359832612,1746361846032,-450.0,0.00019808,2]
[359832613,1746361846043,-450.0,0.00019808,2]
[359832614,1746361846053,-450.0,0.00019808,2]
[359832615,1746361846063,-450.0,0.00019808,2]
[359832616,1746361846073,-450.0,0.00019808,2]
[359832617,1746361846082,-566.7,0.00019808,2]
[359832618,1746361846093,-29017.37,0.00019808,2]
[359832619,1746361846104,-562.15,0.00019808,2]
[359832620,1746361846115,-1658.11,0.00019808,2]
[359832621,1746361846126,-242.93,0.00019808,2]
[359832622,1746361846136,-450.0,0.00019808,2]
[359832623,1746361846145,-1604.59,0.00019808,2]
[359832624,1746361846155,-392.43,0.00019808,2]
[359832625,1746361846164,-450.0,0.00019808,2]
[359832626,1746361846174,-617.38,0.00019808,2]
[359832627,1746361846184,-450.0,0.00019808,2]
[359832628,1746361846194,-371.04,0.00019808,2]
[359832629,1746361846204,-450.0,0.00019808,2]
[359832630,1746361846214,-450.0,0.00019808,2]
[359832631,1746361846224,-1492.29,0.00019808,2]
[359832633,1746361846234,-731.7,0.00019808,2]
[359832634,1746361846244,-450.0,0.00019808,2]
[359832636,1746361846253,-450.0,0.00019808,2]
[359832638,1746361846263,-450.0,0.00019808,2]
[359832640,1746361846273,-450.0,0.00019808,2]
[359832642,1746361846283,-467.9,0.00019808,2]
[359832644,1746361846293,-450.0,0.00019808,2]
[359832646,1746361846303,-450.0,0.00019808,2]
[359832648,1746361846312,-212.41,0.00019808,2]
[359832650,1746361846322,-567.18,0.00019808,2]
[359832652,1746361846331,-648.38,0.00019808,2]
[359832654,1746361846341,-450.0,0.00019808,2]
[359832656,1746361846351,-450.0,0.00019808,2]
[359832658,1746361846360,-450.0,0.00019808,2]
[359832660,1746361846370,-450.0,0.00019808,2]
[359832661,1746361846379,-1492.46,0.00019808,2]
[359832662,1746361846389,-1485.51,0.00019808,2]
[359832663,1746361846399,-1097.17,0.00019808,2]
[359832664,1746361846410,-570.74,0.00019808,2]
[359832665,1746361846419,-974.38,0.00019808,2]
[359832667,1746361846430,-450.0,0.00019808,2]
[359832669,1746361846439,-450.0,0.00019808,2]
[359832671,1746361846449,-1097.96,0.00019808,2]
[359832673,1746361846459,-1242.38130931,0.00019809,2]
[359832675,1746361846468,-12500.0,0.00019812,2]
[359832677,1746361846478,-12500.0,0.00019821,2]
[359832679,1746361846488,-12500.0,0.0001983,2]
[359832681,1746361846498,-168.92,0.00019835,2]
[359832684,1746361846508,-412.12,0.00019835,2]
[359832685,1746361846518,-450.0,0.00019835,2]
[359832686,1746361846528,-450.0,0.00019835,2]
[359832687,1746361846537,-450.0,0.00019835,2]
[359832688,1746361846547,-554.37006051,0.00019835,2]
[359832689,1746361846557,-450.0,0.00019835,2]
[359832690,1746361846567,-450.0,0.00019835,2]
[359832691,1746361846577,-543.69,0.00019835,2]
[359832692,1746361846586,-450.0,0.00019835,2]
[359832693,1746361846596,-565.95,0.00019835,2]
[359832694,1746361846650,-450.0,0.00019835,2]
[359832695,1746361846660,-594.97,0.00019835,2]
[359832696,1746361846670,-450.0,0.00019835,2]
[359832697,1746361846679,-450.0,0.00019835,2]
[359832698,1746361846689,-423.6,0.00019835,2]
[359832699,1746361846698,-441.63,0.00019835,2]
[359832700,1746361846707,-450.0,0.00019835,2]
[359832701,1746361846717,-450.0,0.00019835,2]
[359832702,1746361846726,-450.0,0.00019835,2]
[359832703,1746361846735,-450.0,0.00019835,2]
[359832704,1746361846744,-450.0,0.00019835,2]
[359832706,1746361846754,-450.0,0.00019835,2]
[359832707,1746361846763,-450.0,0.00019835,2]
[359832708,1746361846772,-20299.45,0.00019835,2]
[359832709,1746361846782,-450.0,0.00019835,2]
[359832710,1746361846791,-1103.2,0.00019835,2]
[359832711,1746361846801,-450.0,0.00019835,2]
[359832713,1746361846811,-4154.09,0.00019835,2]
[359832715,1746361846821,-450.0,0.00019835,2]
[359832717,1746361846831,-450.0,0.00019835,2]
[359832719,1746361846841,-2372.19,0.00019835,2]
[359832721,1746361846850,-450.0,0.00019835,2]
[359832723,1746361846864,-450.0,0.00019835,2]
[359832725,1746361846874,-450.0,0.00019835,2]
[359832727,1746361846883,-450.0,0.00019835,2]
[359832729,1746361846892,-450.0,0.00019835,2]
[359832731,1746361846903,-450.0,0.00019835,2]
[359832733,1746361846912,-450.0,0.00019835,2]
[359832735,1746361846924,-566.7,0.00019835,2]
[359832737,1746361846936,-29017.37,0.00019835,2]
[359832740,1746361846946,-1658.11,0.00019835,2]
[359832743,1746361846956,-450.0,0.00019835,2]
[359832746,1746361846966,-1604.59,0.00019835,2]
[359832748,1746361846976,-450.0,0.00019835,2]
[359832750,1746361846985,-617.38,0.00019835,2]
[359832752,1746361846994,-450.0,0.00019835,2]
[359832754,1746361847004,-450.0,0.00019835,2]
[359832756,1746361847013,-151.38,0.00019835,2]
[359832758,1746361847023,-1492.29,0.00019835,2]
[359832760,1746361847032,-731.7,0.00019835,2]
[359832762,1746361847042,-450.0,0.00019835,2]
[359832764,1746361847051,-450.0,0.00019835,2]
[359832766,1746361847062,-420.93,0.00019835,2]
[359832768,1746361847072,-450.0,0.00019835,2]
[359832770,1746361847082,-467.9,0.00019835,2]
[359832773,1746361847092,-450.0,0.00019835,2]
[359832775,1746361847101,-450.0,0.00019835,2]
[359832776,1746361847110,-567.18,0.00019835,2]
[359832778,1746361847121,-648.38,0.00019835,2]
[359832780,1746361847130,-402.68,0.00019835,2]
[359832782,1746361847139,-450.0,0.00019835,2]
[359832784,1746361847148,-450.0,0.00019835,2]
[359832786,1746361847157,-450.0,0.00019835,2]
[359832788,1746361847167,-1492.46,0.00019835,2]
[359832790,1746361847176,-1485.51,0.00019835,2]
[359832792,1746361847185,-1097.17,0.00019835,2]
[359832794,1746361847195,-570.74,0.00019835,2]
[359832797,1746361847205,-974.38,0.00019835,2]
[359832798,1746361847214,-450.0,0.00019835,2]
[359832800,1746361847224,-450.0,0.00019835,2]
[359832802,1746361847233,-1097.96,0.00019835,2]
[359832804,1746361847243,-12500.0,0.00019838,2]
[359832806,1746361847252,-1242.38130931,0.00019839,2]
[359832808,1746361847262,-500.0,0.0001984,2]
[359832810,1746361847271,-2000.0,0.0001984,2]
[359832813,1746361847280,-200.0,0.0001984,2]
[359832815,1746361847290,-12500.0,0.00019847,2]
[359832817,1746361847300,-12500.0,0.00019856,2]
[359832819,1746361847309,-500.0,0.00019862,2]
[359832821,1746361847319,-590.7,0.00019862,2]
[359832823,1746361847329,-1013.0,0.00019863,2]
[359832825,1746361847339,-450.0,0.00019863,2]
[359832827,1746361847349,-450.0,0.00019863,2]
[359832829,1746361847358,-450.0,0.00019863,2]
[359832830,1746361847368,-450.0,0.00019863,2]
[359832832,1746361847378,-450.0,0.00019863,2]
[359832834,1746361847387,-543.69,0.00019863,2]
[359832836,1746361847397,-450.0,0.00019863,2]
[359832838,1746361847406,-565.95,0.00019863,2]
[359832840,1746361847415,-450.0,0.00019863,2]
[359832842,1746361847425,-594.97,0.00019863,2]
[359832844,1746361847434,-450.0,0.00019863,2]
[359832846,1746361847444,-476.91,0.00019863,2]
[359832848,1746361847454,-450.0,0.00019863,2]
[359832850,1746361847464,-450.0,0.00019863,2]
[359832852,1746361847475,-450.0,0.00019863,2]
[359832854,1746361847485,-450.0,0.00019863,2]
[359832856,1746361847494,-450.0,0.00019863,2]
[359832858,1746361847504,-450.0,0.00019863,2]
[359832860,1746361847514,-20299.45,0.00019863,2]
[359832862,1746361847524,-450.0,0.00019863,2]
[359832864,1746361847533,-1103.2,0.00019863,2]
[359832866,1746361847543,-450.0,0.00019863,2]
[359832868,1746361847553,-4154.09,0.00019863,2]
[359832870,1746361847563,-450.0,0.00019863,2]
[359832872,1746361847573,-450.0,0.00019863,2]
[359832874,1746361847583,-2372.19,0.00019863,2]
[359832876,1746361847593,-450.0,0.00019863,2]
[359832878,1746361847603,-450.0,0.00019863,2]
[359832879,1746361847613,-450.0,0.00019863,2]
[359832882,1746361847622,-450.0,0.00019863,2]
[359832883,1746361847632,-450.0,0.00019863,2]
[359832885,1746361847643,-450.0,0.00019863,2]
[359832887,1746361847652,-450.0,0.00019863,2]
[359832889,1746361847661,-566.7,0.00019863,2]
[359832891,1746361847672,-29017.37,0.00019863,2]
[359832893,1746361847681,-1658.11,0.00019863,2]
[359832895,1746361847691,-370.4,0.00019863,2]
[359832897,1746361847701,-1604.59,0.00019863,2]
[359832899,1746361847711,-450.0,0.00019863,2]
[359832901,1746361847722,-617.38,0.00019863,2]
[359832903,1746361847731,-450.0,0.00019863,2]
[359832905,1746361847741,-499.64,0.00019863,2]
[359832907,1746361847753,-1492.29,0.00019863,2]
[359832908,1746361847763,-731.7,0.00019863,2]
[359832909,1746361847772,-450.0,0.00019863,2]
[359832910,1746361847782,-450.0,0.00019863,2]
[359832911,1746361847791,-450.0,0.00019863,2]
[359832912,1746361847800,-467.9,0.00019863,2]
[359832913,1746361847810,-450.0,0.00019863,2]
[359832914,1746361847821,-450.0,0.00019863,2]
[359832915,1746361847832,-567.18,0.00019863,2]
[359832916,1746361847841,-648.38,0.00019863,2]
[359832917,1746361847850,-450.0,0.00019863,2]
[359832918,1746361847862,-450.0,0.00019863,2]
[359832919,1746361847871,-450.0,0.00019863,2]
[359832920,1746361847881,-1492.46,0.00019863,2]
[359832921,1746361847890,-1485.51,0.00019863,2]
[359832922,1746361847900,-1097.17,0.00019863,2]
[359832923,1746361847909,-570.74,0.00019863,2]
[359832924,1746361847918,-974.38,0.00019863,2]
[359832925,1746361847928,-450.0,0.00019863,2]
[359832926,1746361847938,-450.0,0.00019863,2]
[359832927,1746361847948,-1097.96,0.00019863,2]
[359832928,1746361847958,-12500.0,0.00019865,2]
[359832929,1746361847966,-1242.38130931,0.0001987,2]
[359832930,1746361847976,-523.45807803,0.00019873,2]
[359832931,1746361847985,-500.0,0.00019873,2]
[359832932,1746361847995,-500.0,0.00019873,2]
[359832933,1746361848006,-500.0,0.00019873,2]
[359832934,1746361848017,-500.0,0.00019873,2]
[359832935,1746361848027,-500.0,0.00019873,2]
[359832936,1746361848038,-500.0,0.00019873,2]
[359832937,1746361848048,-500.0,0.00019873,2]
[359832938,1746361848058,-503.01916239,0.00019873,2]
[359832939,1746361848068,-500.0,0.00019873,2]
[359832940,1746361848078,-502.06385384,0.00019873,2]
[359832941,1746361848088,-500.0,0.00019873,2]
[359832942,1746361848098,-500.0,0.00019873,2]
[359832943,1746361848108,-500.0,0.00019873,2]
[359832944,1746361848117,-303.17184781,0.00019873,2]
[359832945,1746361848127,-12500.0,0.00019874,2]
[359832946,1746361848137,-12500.0,0.00019882,2]
[359832947,1746361848148,-3399.826,0.0001989,2]
[359832948,1746361848158,-214.893,0.0001989,2]
[359832949,1746361848168,-450.0,0.0001989,2]
[359832950,1746361848177,-450.0,0.0001989,2]
[359832951,1746361848188,-376.72,0.0001989,2]
[359832952,1746361848198,-450.0,0.0001989,2]
[359832953,1746361848207,-450.0,0.0001989,2]
[359832954,1746361848216,-543.69,0.0001989,2]
[359832955,1746361848226,-450.0,0.0001989,2]
[359832956,1746361848236,-565.95,0.0001989,2]
[359832957,1746361848246,-450.0,0.0001989,2]
[359832958,1746361848256,-594.97,0.0001989,2]
[359832959,1746361848266,-450.0,0.0001989,2]
[359832960,1746361848276,-265.07273808,0.0001989,2]
[359832961,1746361848286,-489.79228444,0.0001989,2]
[359832962,1746361848296,-450.0,0.0001989,2]
[359832963,1746361848306,-450.0,0.0001989,2]
[359832964,1746361848316,-450.0,0.0001989,2]
[359832965,1746361848325,-450.0,0.0001989,2]
[359832966,1746361848334,-20299.45,0.0001989,2]
[359832967,1746361848343,-450.0,0.0001989,2]
[359832968,1746361848352,-1103.2,0.0001989,2]
[359832969,1746361848361,-450.0,0.0001989,2]
[359832970,1746361848371,-4154.09,0.0001989,2]
[359832971,1746361848381,-450.0,0.0001989,2]
[359832972,1746361848391,-450.0,0.0001989,2]
[359832973,1746361848400,-2372.19,0.0001989,2]
[359832974,1746361848410,-450.0,0.0001989,2]
[359832975,1746361848420,-450.0,0.0001989,2]
[359832976,1746361848429,-450.0,0.0001989,2]
[359832977,1746361848439,-450.0,0.0001989,2]
[359832978,1746361848448,-450.0,0.0001989,2]
[359832979,1746361848458,-450.0,0.0001989,2]
[359832980,1746361848467,-450.0,0.0001989,2]
[359832981,1746361848478,-566.7,0.0001989,2]
[359832982,1746361848487,-29017.37,0.0001989,2]
[359832983,1746361848497,-1658.11,0.0001989,2]
[359832984,1746361848508,-1604.59,0.0001989,2]
[359832985,1746361848518,-389.43,0.0001989,2]
[359832986,1746361848528,-617.38,0.0001989,2]
[359832987,1746361848538,-450.0,0.0001989,2]
[359832988,1746361848546,-1492.29,0.0001989,2]
[359832989,1746361848555,-731.7,0.0001989,2]
[359832990,1746361848564,-225.05,0.0001989,2]
[359832991,1746361848574,-215.46089543,0.0001989,2]
[359832992,1746361848582,-489.75,0.0001989,2]
[359832993,1746361848591,-467.9,0.0001989,2]
[359832994,1746361848599,-444.99,0.0001989,2]
[359832995,1746361848608,-590.67,0.0001989,2]
[359832996,1746361848618,-567.18,0.0001989,2]
[359832997,1746361848627,-648.38,0.0001989,2]
[359832998,1746361848637,-450.0,0.0001989,2]
[359832999,1746361848647,-450.0,0.0001989,2]
[359833000,1746361848657,-450.0,0.0001989,2]
[359833001,1746361848667,-1492.46,0.0001989,2]
[359833002,1746361848677,-1485.51,0.0001989,2]
[359833003,1746361848687,-1097.17,0.0001989,2]
[359833004,1746361848697,-570.74,0.0001989,2]
[359833005,1746361848706,-974.38,0.0001989,2]
[359833006,1746361848716,-293.27,0.0001989,2]
[359833007,1746361848726,-450.0,0.0001989,2]
[359833008,1746361848736,-1097.96,0.0001989,2]
[359833009,1746361848746,-12500.0,0.00019891,2]
[359833010,1746361848755,-283.34423172,0.00019899,2]
[359833011,1746361848765,-180.07936959,0.00019899,2]
[359833012,1746361848775,-260.74186869,0.00019899,2]
[359833013,1746361848785,-500.0,0.00019899,2]
[359833014,1746361848795,-500.0,0.00019899,2]
[359833015,1746361848805,-225.71169747,0.00019899,2]
[359833016,1746361848814,-500.0,0.00019899,2]
[359833017,1746361848824,-500.0,0.00019899,2]
[359833018,1746361848834,-500.0,0.00019899,2]
[359833019,1746361848844,-500.0,0.00019899,2]
[359833020,1746361848854,-500.0,0.00019899,2]
[359833021,1746361848868,-500.0,0.00019899,2]
[359833022,1746361848878,-323.81763917,0.00019899,2]
[359833023,1746361848888,-500.0,0.00019899,2]
[359833024,1746361848898,-500.0,0.00019899,2]
[359833025,1746361848908,-500.0,0.00019899,2]
[359833026,1746361848918,-500.0,0.00019899,2]
[359833027,1746361848927,-500.0,0.00019899,2]
[359833028,1746361848938,-13003.3413,0.000199,2]
[359833029,1746361848948,-213.61276709,0.000199,2]
[359833030,1746361848957,-12500.0,0.000199,2]
[359833031,1746361848968,-54868.98190497,0.000199,2]
[359833032,1746361848978,-96.94841128,0.000199,2]
[359833033,1746361849211,-302.91634603,0.000199,2]
[359833034,1746361849221,-1524.4931369,0.000199,2]
[359833035,1746361849231,-1675.5153502,0.000199,2]
[359833036,1746361849243,-1028.93609989,0.000199,2]
[359833037,1746361849255,-682.60523184,0.000199,2]
[359833038,1746361849267,-1034.355,0.000199,2]
[359833039,1746361849278,-906.08801235,0.000199,2]
[359833040,1746361849295,-654.839996,0.000199,2]
[359833041,1746361849308,-741.29069357,0.000199,2]
[359833042,1746361849320,-2911.79340126,0.000199,2]
[359833043,1746361849331,-1000.0,0.000199,2]
[359833044,1746361849342,-5418.96480726,0.000199,2]
[359833045,1746361849351,-670.52413092,0.000199,2]
[359833046,1746361849362,-74.29661852,0.000199,2]
[359833047,1746361849382,-1168.08469079,0.000199,2]
[359833048,1746361849391,-213.61276707,0.00019902,2]
[359833049,1746361849401,-213.61276707,0.00019904,2]
[359833050,1746361849412,-213.61276707,0.00019907,2]
[359833051,1746361849421,-670.52413092,0.00019907,2]
[359833052,1746361849431,-213.61276707,0.00019909,2]
[359833053,1746361849444,-213.61276707,0.00019911,2]
[359833054,1746361849455,-213.61276707,0.00019913,2]
[359833055,1746361849464,-450.0,0.00019917,2]
[359833056,1746361849475,-370.87,0.00019917,2]